bitfinex-derivatives/quotes_ETHF0:USTF0_20210401
["timestamp","ask_amount","ask_price","bid_price","bid_amount"]
[1617306076395,3.95025,1967.2,1967.1,2.90695]
[1617306076595,3.95025,1967.2,1965.2,2.0]
[1617306076796,4.65226071,1967.2,1965.5,13.596]
[1617306076997,61.2435,1966.6,1965.8,61.2435]
[1617306077196,2.90695,1966.5,1966.4,2.90695]
[1617306079097,1.37055,1966.5,1966.4,2.90695]
[1617306079797,68.994,1966.9,1966.5,68.993]
[1617306079997,68.994,1966.9,1966.5,70.0203]
[1617306080799,0.70208266,1967.2,1966.5,1.0273]
[1617306081002,0.70208266,1967.2,1967.0,76.8205]
[1617306081300,29.04059911,1967.5,1967.1,3.91555]
[1617306081501,28.3385,1967.5,1967.1,3.91555]
[1617306081903,28.3385,1967.5,1967.1,2.90695]
[1617306083002,77.52269179,1967.6,1967.1,2.90695]
[1617306083204,77.52269179,1967.6,1967.5,2.90695]
[1617306083405,0.70219179,1967.6,1967.5,2.90695]
[1617306083605,0.93814199,1968.0,1967.5,2.90695]
[1617306083912,78.4421,1967.9,1967.5,81.34905]
[1617306085104,78.4421,1967.9,1967.8,2.90695]
[1617306087208,81.34905,1967.9,1967.8,2.90695]
[1617306093310,78.4421,1967.9,1967.8,2.90695]
[1617306097613,16.69665,1968.4,1967.8,2.90695]
[1617306098116,16.69665,1968.4,1968.1,70.0004]
[1617306098315,16.69665,1968.4,1968.1,71.5421]
[1617306099316,16.69665,1968.4,1968.3,2.90695]
[1617306100422,2.90695,1968.4,1968.3,2.90695]
[1617306102724,0.94138114,1968.7,1968.3,2.90695]
[1617306103026,13.6971,1969.6,1968.3,2.90695]
[1617306103027,0.94116785,1968.8,1968.3,2.90695]
[1617306103225,0.9413207,1968.9,1968.3,2.90695]
[1617306103425,2.90695,1968.8,1968.7,4.16955]
[1617306103825,3.15534813,1968.8,1968.7,4.16955]
[1617306104235,2.90695,1968.8,1968.7,4.16955]
[1617306104629,6.06875,1969.2,1968.7,4.16955]
[1617306104829,58.9594,1969.0,1968.7,2.90695]
[1617306105435,58.9594,1969.0,1968.9,2.90695]
[1617306106938,2.90695,1969.1,1968.9,2.90695]
[1617306107129,80.4634,1969.0,1968.9,2.90695]
[1617306110937,2.90695,1969.1,1968.9,2.90695]
[1617306111637,2.90695,1969.1,1969.0,57.4453]
[1617306112340,2.90695,1969.1,1968.9,2.90695]
[1617306112540,2.90695,1969.1,1969.0,68.1856]
[1617306114446,6.06875,1969.2,1969.0,68.1856]
[1617306115449,6.06875,1969.2,1969.1,2.90695]
[1617306116547,6.06875,1969.2,1969.0,68.1856]
[1617306117545,6.06875,1969.2,1969.1,2.90695]
[1617306119545,8.9757,1969.2,1969.1,2.90695]
[1617306120347,6.06875,1969.2,1969.1,2.90695]
[1617306121453,8.9757,1969.2,1969.1,2.90695]
[1617306122362,6.06875,1969.2,1969.1,2.90695]
[1617306122750,4.75375,1969.2,1969.1,2.90695]
[1617306122949,3.52255,1969.2,1969.1,2.90695]
[1617306123183,1.00205,1969.2,1969.1,2.90695]
[1617306123366,27.7742,1970.3,1969.1,2.90695]
[1617306123367,27.7742,1970.3,1970.1,74.7033]
[1617306123554,13.7482,1970.3,1970.2,2.90695]
[1617306123756,2.0,1970.5,1970.2,2.90695]
[1617306124054,0.93799207,1971.0,1970.7,82.2019]
[1617306124554,0.93805189,1971.1,1970.7,82.2019]
[1617306124957,0.93841288,1971.2,1970.7,82.2019]
[1617306125156,0.93841288,1971.2,1970.7,83.2114]
[1617306125355,15.04838106,1971.3,1970.7,83.2114]
[1617306125555,15.04838106,1971.3,1971.2,2.90695]
[1617306125756,14.1098,1971.3,1971.2,3.98255]
[1617306127661,17.01675,1971.3,1971.2,3.98255]
[1617306128861,2.90695,1971.3,1971.2,3.98255]
[1617306129062,2.90695,1971.3,1971.2,5.00565]
[1617306129562,16.53665,1971.8,1971.3,71.3442]
[1617306131467,13.6297,1971.8,1971.7,2.90695]
[1617306131865,13.6297,1971.8,1971.7,3.98675]
[1617306132868,13.7131,1972.4,1971.7,3.98675]
[1617306133172,13.7131,1972.4,1972.3,71.9181]
[1617306133580,16.62005,1972.4,1972.3,71.9181]
[1617306134166,16.62005,1972.4,1972.3,72.927]
[1617306134767,2.0,1973.3,1972.3,2.5484]
[1617306134969,2.0,1973.5,1972.4,84.8598]
[1617306135667,2.0,1973.5,1973.4,3.93285]
[1617306136067,1.6444,1973.5,1973.4,3.93285]
[1617306136969,1.6444,1973.5,1973.4,2.90695]
[1617306137568,1.6444,1973.5,1973.4,3.99845]
[1617306137970,1.6444,1974.0,1973.5,78.8334]
[1617306138969,1.6444,1974.0,1973.4,2.90695]
[1617306139269,1.6444,1974.0,1973.5,1.0208]
[1617306139770,1.6444,1974.0,1973.7,2.90695]
[1617306140169,1.6444,1974.0,1973.3,1.0248]
[1617306140471,80.4786,1973.4,1972.3,1.0089]
[1617306140670,1.6444,1973.3,1972.3,1.0089]
[1617306141573,1.6444,1973.3,1972.7,2.90695]
[1617306141980,1.5199,1974.0,1972.9,72.5668]
[1617306142177,2.0,1974.1,1972.9,72.5668]
[1617306143776,2.0,1974.1,1973.1,2.90695]
[1617306144579,32.0,1974.1,1973.1,2.90695]
[1617306144777,63.8743,1973.3,1972.3,1.0074]
[1617306145476,2.0,1973.2,1972.3,1.0074]
[1617306145779,1.3323,1973.2,1972.5,2.90695]
[1617306145983,3.3323,1973.2,1972.5,2.90695]
[1617306146784,3.3323,1973.2,1971.8,78.4069]
[1617306147681,3.3323,1973.2,1971.8,77.4046]
[1617306147981,3.3323,1973.2,1972.1,2.90695]
[1617306149484,63.8743,1973.3,1972.1,2.90695]
[1617306149784,2.90695,1973.4,1972.9,2.90695]
[1617306149985,2.90695,1973.4,1972.9,3.91775]
[1617306150184,2.90695,1973.4,1972.9,2.90695]
[1617306150385,2.0,1973.3,1972.9,2.90695]
[1617306150586,2.90695,1973.4,1972.9,2.90695]
[1617306151289,2.90695,1973.4,1972.9,3.92725]
[1617306151487,2.90695,1973.4,1972.9,5.32715]
[1617306151887,2.0,1973.6,1972.9,5.32715]
[1617306151888,2.0,1973.6,1973.2,2.90695]
[1617306153389,2.0,1974.1,1973.2,2.90695]
[1617306153590,2.0,1973.6,1973.2,2.90695]
[1617306153989,2.0,1973.6,1973.5,2.90695]
[1617306154188,2.0,1973.6,1973.5,3.93235]
[1617306155790,2.0,1973.6,1973.5,5.19985]
[1617306155990,4.90695,1973.6,1973.5,5.19985]
[1617306157092,4.90695,1973.6,1973.5,3.93235]
[1617306157297,4.90695,1973.6,1973.5,2.90695]
[1617306159093,4.90695,1973.6,1972.7,70.4732]
[1617306160092,2.0,1973.6,1973.3,2.90695]
[1617306160794,2.0,1973.6,1973.3,4.19285]
[1617306161795,2.0,1973.6,1973.3,2.90695]
[1617306161995,2.90695,1973.4,1973.3,2.90695]
[1617306162296,2.0,1973.6,1973.3,2.90695]
[1617306163197,2.0,1974.1,1973.3,2.90695]
[1617306163900,2.90695,1973.4,1973.3,2.90695]
[1617306164397,2.0,1974.1,1973.3,2.90695]
[1617306164599,2.0,1974.1,1973.7,64.0142]
[1617306166100,2.0,1974.1,1973.9,2.90695]
[1617306166512,2.0,1974.0,1265.2,2.21289782]
[1617306166710,80.1819,1973.8,1972.4,80.1819]
[1617306166901,2.0,1973.7,1972.4,80.1819]
[1617306167905,2.0,1973.7,1973.4,2.90695]
[1617306168104,3.0253,1973.7,1973.4,2.90695]
[1617306169425,2.0,1973.7,1973.4,2.90695]
[1617306170116,2.0,1973.7,1973.6,2.90695]
[1617306172006,4.90695,1973.7,1973.6,2.90695]
[1617306174010,4.90695,1973.7,1973.0,1.0127]
[1617306174208,6.55865,1973.7,1973.0,1.0127]
[1617306174708,6.55865,1973.7,1971.5,13.5377]
[1617306175008,83.1441,1973.0,1971.5,13.5377]
[1617306175317,84.462,1973.0,1971.5,13.5377]
[1617306175912,84.462,1973.0,1972.4,2.90695]
[1617306177911,2.90695,1972.5,1972.4,2.90695]
[1617306179630,4.51745,1972.5,1972.4,2.90695]
[1617306180515,4.51745,1972.5,1971.3,1.60685]
[1617306180716,65.4109,1971.9,1970.6,2.0]
[1617306181220,65.4109,1971.9,1970.7,3.0095]
[1617306182121,65.4109,1971.9,1971.8,3.91685]
[1617306182521,24.51045,1970.0,1967.9,1.0105]
[1617306182721,24.51045,1970.0,1969.2,98.5635]
[1617306183021,24.51045,1970.0,1969.3,74.0057]
[1617306183421,24.51045,1970.0,1969.3,75.0074]
[1617306183823,24.51045,1970.0,1969.7,30.0]
[1617306184023,24.51045,1970.0,1969.9,2.90695]
[1617306184224,23.29235,1970.0,1969.9,2.90695]
[1617306184427,21.17185,1970.0,1969.9,32.90695]
[1617306184625,20.04975,1970.0,1969.9,32.90695]
[1617306184828,16.75515,1970.0,1969.9,32.90695]
[1617306185026,16.75515,1970.0,1969.9,103.11345]
[1617306185326,15.50805,1970.0,1969.9,103.11345]
[1617306185527,15.42575,1970.0,1969.9,103.11345]
[1617306185925,14.58445,1970.0,1969.9,103.11345]
[1617306186126,14.08305,1970.0,1969.9,103.11345]
[1617306186327,1.35895,1970.0,1969.9,103.11345]
[1617306186527,70.2065,1971.1,1969.9,103.11345]
[1617306186727,66.7631,1971.1,1969.9,103.11345]
[1617306186929,64.2219,1971.1,1969.9,103.11345]
[1617306187126,59.8577,1971.1,1969.9,103.11345]
[1617306187327,55.3005,1971.1,1969.9,103.11345]
[1617306187626,54.4177,1971.1,1969.9,103.11345]
[1617306187826,53.5129,1971.1,1969.9,103.11345]
[1617306188029,51.1393,1971.1,1971.0,2.90695]
[1617306188234,51.1393,1971.1,1971.0,3.92365]
[1617306188827,48.2516,1971.1,1971.0,3.92365]
[1617306189535,48.01,1971.1,1971.0,3.92365]
[1617306189736,14.4315,1972.8,1971.0,3.92365]
[1617306189930,12.1675,1972.8,1971.0,3.92365]
[1617306190129,8.906,1972.8,1972.7,2.90695]
[1617306190342,2.90695,1973.0,1972.7,2.90695]
[1617306190538,0.87345,1973.0,1972.7,2.90695]
[1617306190739,57.4712,1973.4,1972.7,2.90695]
[1617306191233,57.4712,1973.4,1972.7,3.92995]
[1617306192134,60.37815,1973.4,1973.3,2.90695]
[1617306192647,60.37815,1973.4,1972.7,1.023]
[1617306192832,60.37815,1973.4,1972.3,57.4712]
[1617306193735,60.37815,1973.4,1972.3,58.4837]
[1617306194050,2.90695,1972.9,1972.7,2.90695]
[1617306195536,2.90695,1972.9,1972.3,51.39065]
[1617306196135,2.90695,1972.9,1972.8,2.90695]
[1617306198439,61.5672,1973.2,1972.8,4.35095]
[1617306200140,61.5672,1973.2,1973.1,2.90695]
[1617306200939,61.5672,1973.2,1972.3,1.0125]
[1617306202141,61.5672,1973.2,1973.1,2.90695]
[1617306202842,61.5672,1973.2,1972.3,1.0125]
[1617306204147,2.90695,1973.0,1972.8,2.90695]
[1617306205247,4.46215,1973.0,1972.3,1.0125]
[1617306206248,1.5552,1973.0,1972.7,2.90695]
[1617306207548,61.5672,1973.2,1972.7,2.90695]
[1617306208151,2.90695,1973.1,1973.0,2.90695]
[1617306211953,2.90695,1973.1,1972.3,1.0125]
[1617306212154,2.90695,1972.8,1972.7,2.90695]
[1617306213156,2.90695,1972.8,1972.3,1.0125]
[1617306214259,2.90695,1972.8,1972.7,2.90695]
[1617306223369,3.61084708,1972.8,1972.7,2.90695]
[1617306225475,2.90695,1972.8,1972.7,2.90695]
[1617306226498,0.70406296,1972.9,1972.7,2.90695]
[1617306227282,0.70395105,1973.0,1972.7,2.90695]
[1617306227680,14.0,1973.1,1972.7,2.90695]
[1617306227681,14.70417043,1973.1,1972.7,2.90695]
[1617306227880,14.0,1973.1,1972.7,2.90695]
[1617306228481,14.0,1973.1,1973.0,2.90695]
[1617306228681,14.0,1973.1,1973.0,3.90685]
[1617306229883,13.0705,1973.1,1973.0,3.90685]
[1617306231185,12.5071,1973.1,1973.0,3.90685]
[1617306231384,12.4226,1973.1,1973.0,3.90685]
[1617306233790,13.12660922,1973.1,1973.0,3.90685]
[1617306234390,14.14300922,1973.1,1972.3,1.0125]
[1617306234592,16.34595,1973.1,1972.3,2.90695]
[1617306235091,2.25173955,1972.7,1972.3,2.90695]
[1617306235293,0.70309066,1972.5,1972.3,2.90695]
[1617306235594,0.7030603,1972.4,1972.3,2.90695]
[1617306236494,3.6100103,1972.4,1972.3,2.90695]
[1617306236895,3.89026267,1972.4,1972.3,2.90695]
[1617306238397,86.25896267,1972.4,1972.3,2.90695]
[1617306238897,86.25896267,1972.4,1972.3,3.93025]
[1617306239298,85.27565,1972.4,1972.3,3.93025]
[1617306239799,85.27565,1972.4,1972.3,2.90695]
[1617306240600,85.97842042,1972.4,1972.3,2.90695]
[1617306242201,85.97842042,1972.4,1972.3,3.92485]
[1617306243704,85.27565,1972.4,1972.3,3.92485]
[1617306244604,85.27565,1972.4,1972.3,2.90695]
[1617306245004,85.97992339,1972.4,1972.3,2.90695]
[1617306245304,85.27565,1972.4,1972.3,2.90695]
[1617306245504,82.3687,1972.4,1972.3,3.92915]
[1617306245710,82.3687,1972.4,1972.3,5.14005]
[1617306245911,0.69425733,1972.8,1972.5,69.0623]
[1617306246151,0.93932085,1973.0,1972.5,69.0623]
[1617306246337,11.60322085,1973.1,1972.5,69.0623]
[1617306246506,5.90032085,1973.1,1973.0,2.90695]
[1617306246706,1.02492085,1973.1,1973.0,2.90695]
[1617306246905,1.02492085,1973.1,1973.0,4.95805]
[1617306249910,0.58092085,1973.1,1973.0,4.95805]
[1617306250311,0.51002085,1973.1,1973.0,4.95805]
[1617306250511,0.29232085,1973.1,1973.0,4.95805]
[1617306251916,0.09222085,1973.1,1973.0,4.95805]
[1617306252121,2.79917085,1973.2,1973.0,4.95805]
[1617306254317,0.05863886,1973.1,1973.0,4.95805]
[1617306256019,2.79917085,1973.2,1973.0,4.95805]
[1617306256020,2.45207085,1973.2,1973.0,4.95805]
[1617306258222,69.0071,1973.6,1973.0,4.95805]
[1617306258621,69.0071,1973.6,1973.5,2.63265449]
[1617306258821,1.17271626,1973.9,1973.5,2.63265449]
[1617306259323,73.7333,1974.0,1973.5,2.63265449]
[1617306259721,0.63000145,1973.9,1973.5,3.64485449]
[1617306260326,0.63000145,1973.9,1973.3,64.37815449]
[1617306260624,2.90695,1973.4,1973.3,67.28510449]
[1617306262324,79.9202,1973.1,1972.7,2.0]
[1617306262523,77.8832,1973.1,1972.7,2.0]
[1617306262723,77.8832,1973.1,1973.0,2.90695]
[1617306262724,76.6105,1973.1,1973.0,2.90695]
[1617306263123,76.3585,1973.1,1973.0,3.92715]
[1617306263831,72.6696,1973.1,1973.0,3.92715]
[1617306264425,71.6736,1973.1,1973.0,3.92715]
[1617306264625,71.5309,1973.1,1973.0,3.92715]
[1617306265530,71.4284,1973.1,1973.0,3.92715]
[1617306265727,71.0763,1973.1,1973.0,3.92715]
[1617306266627,73.98325,1973.1,1973.0,3.92715]
[1617306267227,71.0763,1973.1,1973.0,3.92715]
[1617306268830,72.94565,1973.1,1973.0,3.92715]
[1617306269130,69.2752,1973.1,1973.0,3.92715]
[1617306269832,69.0309,1973.1,1973.0,3.92715]
[1617306270735,71.93785,1973.1,1973.0,3.92715]
[1617306270933,69.0309,1973.1,1973.0,3.92715]
[1617306271635,67.0019,1973.1,1973.0,3.92715]
[1617306271935,66.8605,1973.1,1973.0,3.92715]
[1617306272136,0.05823765,1973.5,1973.0,3.92715]
[1617306272736,2.90695,1973.5,1973.4,2.90695]
[1617306272937,68.7607,1974.0,1973.4,3.97065]
[1617306273138,67.9281,1974.0,1973.4,3.97065]
[1617306273362,67.8417,1974.0,1973.4,3.97065]
[1617306273538,67.1037,1974.0,1973.4,3.97065]
[1617306274542,66.1033,1974.0,1973.4,3.97065]
[1617306274741,62.7614,1974.0,1973.8,2.90695]
[1617306274965,62.1375,1974.0,1973.8,5.25245]
[1617306275541,13.7309,1974.2,1973.8,5.25245]
[1617306276642,12.9804,1974.2,1973.8,5.25245]
[1617306276842,2.90695,1973.9,1973.8,5.25245]
[1617306278447,1.88385,1973.9,1973.8,5.25245]
[1617306279747,75.24225649,1975.2,1973.8,5.25245]
[1617306280450,74.3116,1975.2,1973.8,5.25245]
[1617306280848,74.3116,1975.2,1975.0,2.90695]
[1617306281049,74.3116,1975.2,1975.0,4.54125]
[1617306282149,73.2924,1975.2,1975.0,5.55505]
[1617306282551,72.4787,1975.2,1975.0,5.55505]
[1617306282750,72.3662,1975.2,1975.0,5.55505]
[1617306283149,2.90695,1975.6,1975.0,5.55505]
[1617306283550,1.96645,1975.6,1975.0,5.55505]
[1617306284050,0.93299279,1976.3,1975.0,5.55505]
[1617306284749,0.93309584,1976.4,1976.1,2.90695]
[1617306285751,1.5615287,1976.5,1976.1,2.90695]
[1617306285952,69.4900698,1976.6,1976.1,2.90695]
[1617306286154,69.4900698,1976.6,1976.1,3.93035]
[1617306286352,0.93343661,1976.5,1976.1,3.93035]
[1617306286757,2.90695,1976.2,1976.1,3.93035]
[1617306287452,2.90695,1976.2,1976.1,1.0234]
[1617306287753,2.90695,1976.2,1975.2,1.0228]
[1617306288756,57.6753,1976.7,1976.1,2.90695]
[1617306288955,57.6753,1976.7,1976.1,3.92805]
[1617306289255,57.6753,1976.7,1976.1,1.0211]
[1617306290258,57.6753,1976.7,1976.1,2.2221]
[1617306290959,57.6753,1976.7,1976.6,3.90355]
[1617306291158,2.0,1977.4,1976.6,3.90355]
[1617306292861,2.90695,1976.7,1976.6,3.90355]
[1617306293962,2.15575,1976.7,1976.6,3.90355]
[1617306294265,2.0,1977.4,1976.6,3.90355]
[1617306294963,14.5389,1977.5,1977.3,2.90695]
[1617306296978,2.90695,1977.4,1977.3,2.90695]
[1617306298876,1.207,1977.4,1976.7,2.90695]
[1617306299871,1.207,1977.4,1975.0,1.0138]
[1617306300476,16.0076,1977.4,1975.0,1.0138]
[1617306300672,32.0,1977.3,1975.0,1.0138]
[1617306300872,32.0,1977.3,1976.0,2.90695]
[1617306301173,2.0,1977.3,1976.0,2.90695]
[1617306301374,30.0,1977.2,1976.0,2.90695]
[1617306301572,2.0,1977.1,1975.0,1.0138]
[1617306301772,32.0,1977.1,1975.0,1.0138]
[1617306302177,59.2413,1976.2,1975.0,1.0138]
[1617306302375,2.0,1976.1,1973.3,2.0]
[1617306302688,15.9646,1976.1,1973.2,14.3343]
[1617306302876,45.9646,1976.1,1975.2,2.90695]
[1617306303078,15.9646,1976.1,1973.2,44.3343]
[1617306303275,30.0467,1976.1,1973.2,44.3343]
[1617306304580,30.0467,1976.1,1973.2,46.3343]
[1617306304978,30.0467,1976.1,1975.4,2.90695]
[1617306306379,30.0467,1976.1,1973.2,46.3343]
[1617306306879,30.0467,1976.1,1975.0,2.90695]
[1617306307081,60.0467,1976.1,1975.0,2.90695]
[1617306307884,60.0467,1976.1,1974.0,1.0176]
[1617306308080,60.0467,1976.1,1973.2,14.3343]
[1617306308592,60.0467,1976.1,1973.8,1.0008]
[1617306308981,60.0467,1976.1,1974.3,2.90695]
[1617306309179,60.0467,1976.1,1973.8,1.0008]
[1617306309487,67.0258,1975.2,1973.2,14.3343]
[1617306309688,30.0,1975.1,1973.2,14.3343]
[1617306310401,2.0,1975.0,1973.2,14.3343]
[1617306310585,30.0,1974.9,1973.2,14.3343]
[1617306310783,2.0,1974.8,1973.2,14.3343]
[1617306311016,33.3594,1974.8,1973.8,2.90695]
[1617306311230,3.3594,1974.8,1973.8,2.90695]
[1617306311483,1.3594,1974.8,1973.8,4.26635]
[1617306311918,65.4788,1975.2,1973.8,4.26635]
[1617306313084,65.4788,1975.2,1974.8,2.90695]
[1617306313284,65.4788,1975.2,1974.8,4.27535]
[1617306314790,65.4788,1975.2,1974.8,5.27875]
[1617306314989,65.4788,1975.2,1975.1,2.90695]
[1617306315488,65.2062,1975.2,1975.1,2.90695]
[1617306316488,11.09305,1975.0,1974.8,2.3718]
[1617306316989,11.09305,1975.0,1974.9,2.90695]
[1617306318522,10.59135,1975.0,1974.9,2.90695]
[1617306319713,8.56035,1975.0,1974.9,2.90695]
[1617306319991,8.30795,1975.0,1974.9,2.90695]
[1617306320791,7.30805,1975.0,1974.9,2.90695]
[1617306321591,7.30805,1975.0,1974.8,1.0034]
[1617306322391,7.23195,1975.0,1974.8,1.0034]
[1617306322997,7.23195,1975.0,1974.9,2.90695]
[1617306323194,6.21195,1975.0,1974.9,2.90695]
[1617306323393,6.21195,1975.0,1974.9,3.96865]
[1617306326301,2.96595,1975.0,1974.9,3.96865]
[1617306326695,2.30095,1975.0,1974.9,3.96865]
[1617306327297,97.94125,1976.1,1974.9,3.96865]
[1617306327898,95.89025,1976.1,1974.9,3.96865]
[1617306328099,94.32405,1976.1,1974.9,3.96865]
[1617306329098,91.4171,1976.1,1976.0,2.90695]
[1617306329701,8.89545,1975.0,1974.8,1.0034]
[1617306330311,7.90355,1975.0,1974.8,1.0034]
[1617306330508,6.82725,1975.0,1974.8,1.0034]
[1617306330903,6.31925,1975.0,1974.8,1.0034]
[1617306331105,6.31925,1975.0,1974.9,2.90695]
[1617306331404,3.84735,1975.0,1974.9,2.90695]
[1617306331605,3.16935,1975.0,1974.9,2.90695]
[1617306331805,2.10255,1975.0,1974.9,2.90695]
[1617306332405,2.03635,1975.0,1974.9,2.90695]
[1617306332808,1.96395,1975.0,1974.9,2.90695]
[1617306333709,1.19785,1975.0,1974.9,2.90695]
[1617306335211,2.90695,1975.9,1974.9,2.90695]
[1617306335813,1.85455,1975.9,1974.9,2.90695]
[1617306336011,46.6943,1977.0,1974.9,2.90695]
[1617306337013,60.0,1975.0,1974.9,2.90695]
[1617306337213,60.0,1975.0,1974.8,1.0034]
[1617306337417,58.9816,1975.0,1974.8,1.0034]
[1617306337815,58.091,1975.0,1974.8,1.0034]
[1617306338015,57.8395,1975.0,1974.8,1.0034]
[1617306338215,56.8358,1975.0,1974.8,1.0034]
[1617306338615,48.9294,1975.0,1974.8,1.0034]
[1617306338814,45.8576,1975.0,1974.8,1.0034]
[1617306339014,40.8695,1975.0,1974.8,1.0034]
[1617306339314,37.0638,1975.0,1974.9,2.90695]
[1617306339514,2.90695,1976.7,1974.9,34.90695]
[1617306339714,1.90795,1976.7,1974.9,34.90695]
[1617306339914,5e-05,1976.7,1974.9,34.90695]
[1617306341116,2.90695,1976.9,1976.6,2.90695]
[1617306341327,14.7582,1977.3,1976.6,2.90695]
[1617306342420,14.7582,1977.3,1976.6,5.21715]
[1617306343220,14.7582,1977.3,1977.2,2.90695]
[1617306343423,0.70210898,1978.0,1977.2,4.33345]
[1617306343622,0.93614531,1978.2,1977.2,4.33345]
[1617306343623,0.7024263,1978.2,1977.2,4.33345]
[1617306344222,0.70265121,1978.3,1977.2,4.33345]
[1617306344522,58.7102,1978.4,1977.2,5.33445]
[1617306345124,58.7102,1978.4,1978.3,2.90695]
[1617306346426,2.90695,1978.5,1978.3,2.90695]
[1617306347624,2.0,1978.4,1977.6,1.0065]
[1617306347825,3.1718,1978.4,1977.6,1.0065]
[1617306348125,1.1718,1978.4,1977.6,1.0065]
[1617306349025,2.90695,1978.5,1977.6,1.0065]
[1617306349226,83.2145,1978.6,1978.0,2.90695]
[1617306349928,83.2145,1978.6,1977.2,1.001]
[1617306351230,83.2145,1978.6,1978.3,2.90695]
[1617306351630,2.0,1978.5,1977.2,1.001]
[1617306351830,32.0,1978.5,1977.2,1.001]
[1617306352030,32.0,1978.5,1976.6,0.9991]
[1617306352733,32.0,1978.5,1975.1,2.0]
[1617306353232,32.0,1978.5,1977.0,2.90695]
[1617306353534,14.8582,1978.4,1977.0,2.90695]
[1617306353731,32.0,1978.3,1977.0,2.90695]
[1617306355236,2.90695,1977.1,1977.0,2.90695]
[1617306356537,2.90695,1977.1,1977.0,3.91405]
[1617306357638,2.0,1978.3,1977.0,3.91405]
[1617306357839,57.3545,1978.0,1977.0,3.91405]
[1617306359341,57.3545,1978.0,1977.5,2.90695]
[1617306361044,2.0,1978.3,1977.5,2.90695]
[1617306361354,2.90695,1977.6,1977.3,2.90695]
[1617306362350,2.90695,1977.6,1977.0,1.0149]
[1617306362559,2.90695,1977.6,1976.6,1.0242]
[1617306362949,14.392,1977.5,1976.6,1.0242]
[1617306363469,46.392,1977.5,1972.6,32.0]
[1617306364251,46.392,1977.5,1975.2,1.0259]
[1617306365459,2.90695,1976.4,1976.2,2.90695]
[1617306365755,46.392,1977.5,1976.2,2.90695]
[1617306366058,1.4189,1977.0,1976.2,2.90695]
[1617306367454,2.90695,1976.3,1975.2,1.0259]
[1617306367655,3.96805,1976.3,1975.2,1.0259]
[1617306368656,2.90695,1976.3,1975.2,1.0259]
[1617306369457,1.4189,1977.0,1975.7,2.90695]
[1617306369659,1.1934,1976.5,1975.2,1.0259]
[1617306369884,13.4238,1976.4,1973.1,34.584]
[1617306370158,30.0,1976.3,1973.1,32.584]
[1617306370558,2.0,1976.2,1973.1,32.584]
[1617306370858,31.2287,1976.1,1973.1,32.584]
[1617306371159,2.0,1976.0,1973.1,32.584]
[1617306371358,2.0,1976.0,1973.1,34.584]
[1617306371561,2.0,1976.0,1975.2,2.90695]
[1617306371871,30.0,1975.9,1975.2,2.90695]
[1617306372060,32.0,1975.9,1975.2,2.90695]
[1617306372862,32.0,1975.9,1973.4,1.012]
[1617306373061,32.0,1975.9,1973.1,4.584]
[1617306373263,83.1629,1975.7,1973.1,2.584]
[1617306373463,33.4993,1975.6,1973.1,2.584]
[1617306373664,33.4993,1975.6,1974.6,2.90695]
[1617306375765,2.90695,1974.7,1974.2,1.0152]
[1617306375964,2.90695,1974.7,1973.4,1.0216]
[1617306376165,2.90695,1974.7,1973.1,2.584]
[1617306376967,3.95895,1974.7,1973.1,2.584]
[1617306377167,33.95895,1974.7,1973.1,2.584]
[1617306377667,33.95895,1974.7,1972.6,1.0063]
[1617306377668,14.6112,1974.6,1973.7,2.90695]
[1617306377868,30.0,1974.5,1973.7,2.90695]
[1617306378069,14.6112,1974.6,1973.7,2.90695]
[1617306379672,14.6112,1974.6,1974.4,2.90695]
[1617306380771,14.6112,1974.6,1973.5,1.005]
[1617306380972,14.6112,1974.6,1973.0,1.2227]
[1617306381172,30.0,1974.5,1972.9,3.5886]
[1617306381373,15.6656,1974.6,1972.9,3.5886]
[1617306381674,14.6112,1974.6,1974.5,4.39505]
[1617306381876,11.604,1974.6,1974.5,5.40665]
[1617306382093,5.8324,1974.6,1974.5,5.40665]
[1617306382281,14.1267,1975.6,1974.5,5.40665]
[1617306383574,14.1267,1975.6,1975.5,3.92345]
[1617306383775,14.1267,1975.6,1975.5,4.97445]
[1617306384576,14.1267,1975.6,1975.5,3.95795]
[1617306384876,14.1267,1975.6,1975.5,2.90695]
[1617306385381,12.3058,1975.6,1975.5,4.47805]
[1617306386078,12.2472,1975.6,1975.5,4.47805]
[1617306386578,11.2463,1975.6,1975.5,4.47805]
[1617306387077,83.2287,1976.3,1975.5,4.47805]
[1617306387278,83.2287,1976.3,1975.5,2.90695]
[1617306387476,113.2287,1976.3,1975.5,2.90695]
[1617306387777,2.90695,1975.6,1974.5,1.0116]
[1617306387977,2.90695,1975.6,1973.5,14.8227]
[1617306387978,4.51465,1975.6,1973.5,14.8227]
[1617306388478,1.6077,1975.6,1973.5,14.8227]
[1617306388678,1.6077,1975.6,1973.6,2.0]
[1617306389081,30.0,1976.1,1973.6,2.0]
[1617306389583,32.0,1976.1,1974.9,2.90695]
[1617306389781,32.0,1976.1,1973.6,2.0]
[1617306389782,30.0,1976.1,1973.6,2.0]
[1617306389983,2.0,1976.0,1973.6,2.0]
[1617306390184,30.0,1975.9,1973.6,2.0]
[1617306390382,31.1537,1975.9,1973.6,2.0]
[1617306390882,31.1537,1975.9,1973.5,14.8227]